[Event "Early-Titled-Tuesday-Blitz-October-10-2023"]
[Site "Chess.com"]
[Date "2023.10.10"]
[Round "10"]
[White "InitiatingASC"]
[Black "howitzer14"]
[Result "0-1"]
[WhiteElo "2362"]
[BlackElo "3006"]
[TimeControl "180+1"]
[EndTime "9:53:21 PDT"]
[Termination "howitzer14 won by resignation"]

1. d4 {[%clk 0:02:38.8]} 1... Nf6 {[%clk 0:02:56.4]} 2. c4 {[%clk 0:02:38.5]}
2... c5 {[%clk 0:02:56.9]} 3. d5 {[%clk 0:02:37.2]} 3... e6 {[%clk 0:02:57.6]}
4. Nc3 {[%clk 0:02:33.2]} 4... exd5 {[%clk 0:02:57.7]} 5. cxd5 {[%clk
0:02:33.4]} 5... d6 {[%clk 0:02:58]} 6. Nf3 {[%clk 0:02:33.6]} 6... g6 {[%clk
0:02:58.4]} 7. g3 {[%clk 0:02:31.3]} 7... Bg7 {[%clk 0:02:54.6]} 8. Bg2 {[%clk
0:02:31.6]} 8... O-O {[%clk 0:02:55.3]} 9. Nd2 {[%clk 0:02:31.4]} 9... Re8
{[%clk 0:02:50.2]} 10. O-O {[%clk 0:02:31.1]} 10... b6 {[%clk 0:02:50.8]} 11.
Nc4 {[%clk 0:02:29.8]} 11... Ba6 {[%clk 0:02:51.3]} 12. Ne3 {[%clk 0:02:27.9]}
12... b5 {[%clk 0:02:24]} 13. a3 {[%clk 0:02:24.1]} 13... Nbd7 {[%clk 0:02:24]}
14. Qc2 {[%clk 0:02:24.3]} 14... Rc8 {[%clk 0:02:22.1]} 15. Qb3 {[%clk
0:02:15.9]} 15... Qb6 {[%clk 0:01:56.3]} 16. Bd2 {[%clk 0:02:09.8]} 16... h5
{[%clk 0:01:38.4]} 17. Bh3 {[%clk 0:01:59.4]} 17... Rc7 {[%clk 0:01:34.4]} 18.
Rfc1 {[%clk 0:01:46.7]} 18... Ne5 {[%clk 0:01:26.7]} 19. Qa2 {[%clk 0:01:02.4]}
19... Qb8 {[%clk 0:01:11.7]} 20. Bg2 {[%clk 0:00:46.5]} 20... Bc8 {[%clk
0:01:07.9]} 21. a4 {[%clk 0:00:42.5]} 21... b4 {[%clk 0:01:04.5]} 22. Nb5 {[%clk
0:00:42.3]} 22... Rce7 {[%clk 0:01:04.9]} 23. Nc4 {[%clk 0:00:20.5]} 23... Nxc4
{[%clk 0:00:59.9]} 24. Qxc4 {[%clk 0:00:20.2]} 24... a6 {[%clk 0:00:55.9]} 25.
Nxd6 {[%clk 0:00:19.1]} 25... Qxd6 {[%clk 0:00:56.5]} 26. Bf4 {[%clk 0:00:19.6]}
26... Qd8 {[%clk 0:00:54]} 27. Qxc5 {[%clk 0:00:17.4]} 27... Rxe2 {[%clk
0:00:53.6]} 28. Bc7 {[%clk 0:00:14.4]} 28... Qd7 {[%clk 0:00:53.2]} 29. Qxb4
{[%clk 0:00:14.2]} 29... Nxd5 {[%clk 0:00:51.5]} 30. Qa5 {[%clk 0:00:06.5]}
30... Nxc7 {[%clk 0:00:50.2]} 31. Rxc7 {[%clk 0:00:06.3]} 31... Qf5 {[%clk
0:00:48.1]} 32. Qxf5 {[%clk 0:00:04]} 32... Bxf5 {[%clk 0:00:49]} 33. Rac1
{[%clk 0:00:02]} 33... Re1+ {[%clk 0:00:48.8]} 34. Rxe1 {[%clk 0:00:01.6]} 34...
Rxe1+ {[%clk 0:00:49.7]} 35. Bf1 {[%clk 0:00:02.1]} 35... Bh3 {[%clk 0:00:50]}
0-1

[Event "Early-Titled-Tuesday-Blitz-October-10-2023"]
[Site "Chess.com"]
[Date "2023.10.10"]
[Round "10"]
[White "PeshkaCh"]
[Black "deribas12345"]
[Result "1-0"]
[WhiteElo "2808"]
[BlackElo "2588"]
[TimeControl "180+1"]
[EndTime "9:53:23 PDT"]
[Termination "PeshkaCh won by resignation"]

1. Nf3 {[%clk 0:03:00.9]} 1... c5 {[%clk 0:02:59.3]} 2. c4 {[%clk 0:03:00.6]}
2... Nf6 {[%clk 0:02:58.4]} 3. Nc3 {[%clk 0:03:01]} 3... Nc6 {[%clk 0:02:57]} 4.
g3 {[%clk 0:03:01.1]} 4... g6 {[%clk 0:02:57.3]} 5. Bg2 {[%clk 0:03:01.5]} 5...
Bg7 {[%clk 0:02:57.9]} 6. O-O {[%clk 0:03:02.2]} 6... O-O {[%clk 0:02:58.3]} 7.
d4 {[%clk 0:03:02.9]} 7... cxd4 {[%clk 0:02:58.8]} 8. Nxd4 {[%clk 0:03:03.8]}
8... Nxd4 {[%clk 0:02:59.3]} 9. Qxd4 {[%clk 0:03:04.7]} 9... Qa5 {[%clk
0:02:59.5]} 10. Nd5 {[%clk 0:02:53.1]} 10... Nxd5 {[%clk 0:02:56.5]} 11. Qxd5
{[%clk 0:02:54]} 11... Qxd5 {[%clk 0:02:55.7]} 12. Bxd5 {[%clk 0:02:53.7]} 12...
d6 {[%clk 0:02:52]} 13. Bg5 {[%clk 0:02:46.7]} 13... Re8 {[%clk 0:02:43.4]} 14.
Rfd1 {[%clk 0:02:36]} 14... Rb8 {[%clk 0:02:40.3]} 15. Rd2 {[%clk 0:02:31.6]}
15... Bd7 {[%clk 0:02:28.2]} 16. Be3 {[%clk 0:02:28.3]} 16... b6 {[%clk
0:02:26.1]} 17. Rc1 {[%clk 0:02:27.3]} 17... Rec8 {[%clk 0:02:23.5]} 18. b4
{[%clk 0:02:24.3]} 18... Rc7 {[%clk 0:01:58.4]} 19. c5 {[%clk 0:02:15.4]} 19...
bxc5 {[%clk 0:01:58.1]} 20. bxc5 {[%clk 0:02:16.3]} 20... dxc5 {[%clk
0:01:58.5]} 21. Rxc5 {[%clk 0:02:14.9]} 21... Rxc5 {[%clk 0:01:56.6]} 22. Bxc5
{[%clk 0:02:15.8]} 22... Bh3 {[%clk 0:01:13.9]} 23. Bb3 {[%clk 0:02:15.9]} 23...
Bf6 {[%clk 0:01:10.6]} 24. Bxa7 {[%clk 0:02:12.6]} 24... Rc8 {[%clk 0:01:07.2]}
25. Rd1 {[%clk 0:02:11.7]} 25... h5 {[%clk 0:00:57.5]} 26. f3 {[%clk 0:02:08.4]}
26... Bf5 {[%clk 0:00:47.8]} 27. Bd4 {[%clk 0:01:55.8]} 27... e5 {[%clk
0:00:41.2]} 28. Bb2 {[%clk 0:01:51.2]} 28... Kg7 {[%clk 0:00:37.6]} 29. e4
{[%clk 0:01:47.9]} 29... Bh3 {[%clk 0:00:34.4]} 30. Kf2 {[%clk 0:01:36.1]} 30...
Rb8 {[%clk 0:00:24.8]} 31. Rd2 {[%clk 0:01:30.8]} 31... Kg8 {[%clk 0:00:21.1]}
32. f4 {[%clk 0:01:03]} 32... Re8 {[%clk 0:00:07]} 33. Rd6 {[%clk 0:01:03.1]}
33... Bg7 {[%clk 0:00:03.1]} 34. Rxg6 {[%clk 0:00:59.8]} 34... Be6 {[%clk
0:00:01.3]} 35. Bxe6 {[%clk 0:00:59]} 35... fxe6 {[%clk 0:00:02.2]} 36. Bxe5
{[%clk 0:00:59.1]} 1-0

[Event "Early-Titled-Tuesday-Blitz-October-10-2023"]
[Site "Chess.com"]
[Date "2023.10.10"]
[Round "10"]
[White "FGHSMN"]
[Black "DenLaz"]
[Result "1-0"]
[WhiteElo "2878"]
[BlackElo "3046"]
[TimeControl "180+1"]
[EndTime "9:53:34 PDT"]
[Termination "FGHSMN won by resignation"]

1. d4 {[%clk 0:02:59.8]} 1... Nf6 {[%clk 0:03:00]} 2. Nf3 {[%clk 0:03:00.2]}
2... d5 {[%clk 0:02:58.8]} 3. Bf4 {[%clk 0:03:00.2]} 3... c5 {[%clk 0:02:58.9]}
4. e3 {[%clk 0:03:00.7]} 4... Nc6 {[%clk 0:02:59.5]} 5. Nbd2 {[%clk 0:03:01.4]}
5... Bg4 {[%clk 0:03:00]} 6. h3 {[%clk 0:03:01.1]} 6... Bh5 {[%clk 0:02:59]} 7.
g4 {[%clk 0:03:00]} 7... Bg6 {[%clk 0:02:58.9]} 8. Bb5 {[%clk 0:02:53.8]} 8...
e6 {[%clk 0:02:52.7]} 9. Ne5 {[%clk 0:02:52.4]} 9... Qb6 {[%clk 0:02:46.4]} 10.
c4 {[%clk 0:02:51]} 10... cxd4 {[%clk 0:02:45.9]} 11. Qa4 {[%clk 0:02:48.8]}
11... Rc8 {[%clk 0:02:39.7]} 12. Nb3 {[%clk 0:02:41.4]} 12... a6 {[%clk
0:02:23.9]} 13. Bxc6+ {[%clk 0:02:39.5]} 13... bxc6 {[%clk 0:02:24.2]} 14. O-O
{[%clk 0:02:33]} 14... Be7 {[%clk 0:02:11.9]} 15. Nxd4 {[%clk 0:02:28.1]} 15...
O-O {[%clk 0:02:00.3]} 16. Ndxc6 {[%clk 0:02:26.5]} 16... Rfe8 {[%clk
0:01:38.5]} 17. Rac1 {[%clk 0:02:12.7]} 17... Bf8 {[%clk 0:01:29.8]} 18. b4
{[%clk 0:02:09.9]} 18... dxc4 {[%clk 0:01:26]} 19. Rxc4 {[%clk 0:02:08]} 19...
Nd5 {[%clk 0:01:23.9]} 20. Rfc1 {[%clk 0:02:05.1]} 20... Qb5 {[%clk 0:01:01.9]}
21. Qb3 {[%clk 0:02:02.3]} 21... Qb6 {[%clk 0:00:50]} 22. a4 {[%clk 0:01:48.4]}
22... Nxf4 {[%clk 0:00:44.6]} 23. exf4 {[%clk 0:01:47.2]} 23... Rc7 {[%clk
0:00:38.7]} 24. Qe3 {[%clk 0:01:39.7]} 24... Rb7 {[%clk 0:00:29.2]} 25. Qxb6
{[%clk 0:01:34.3]} 25... Rxb6 {[%clk 0:00:30.1]} 26. Nd7 {[%clk 0:01:27.7]}
26... Rb7 {[%clk 0:00:29.6]} 27. Nxf8 {[%clk 0:01:23.1]} 27... Kxf8 {[%clk
0:00:30.5]} 28. Ne5 {[%clk 0:01:20.7]} 28... f6 {[%clk 0:00:27.2]} 29. Nc6
{[%clk 0:01:19.3]} 29... Rc8 {[%clk 0:00:23.2]} 30. Na5 {[%clk 0:01:17.5]} 30...
Rxc4 {[%clk 0:00:21]} 31. Rxc4 {[%clk 0:01:18.4]} 31... Rd7 {[%clk 0:00:21.2]}
32. f3 {[%clk 0:01:11.3]} 32... Rd1+ {[%clk 0:00:20.3]} 33. Kf2 {[%clk
0:01:11.6]} 33... Rb1 {[%clk 0:00:20.9]} 34. Nb7 {[%clk 0:01:09.8]} 34... Bd3
{[%clk 0:00:19.2]} 35. Rd4 {[%clk 0:01:09.6]} 35... Bc2 {[%clk 0:00:17.9]} 36.
Nc5 {[%clk 0:01:05.1]} 36... Ke7 {[%clk 0:00:18.3]} 37. a5 {[%clk 0:01:01.9]}
37... e5 {[%clk 0:00:13]} 38. fxe5 {[%clk 0:01:02.3]} 38... fxe5 {[%clk
0:00:13.9]} 39. Rd7+ {[%clk 0:01:02.7]} 39... Ke8 {[%clk 0:00:08.9]} 40. Rd2
{[%clk 0:00:58.9]} 40... Bg6 {[%clk 0:00:05.9]} 41. Nxa6 {[%clk 0:00:59.4]}
41... Ke7 {[%clk 0:00:06.1]} 42. Nc7 {[%clk 0:00:57.7]} 1-0

[Event "Early-Titled-Tuesday-Blitz-October-10-2023"]
[Site "Chess.com"]
[Date "2023.10.10"]
[Round "10"]
[White "c63_amg"]
[Black "elprimo2012mortis"]
[Result "0-1"]
[WhiteElo "2788"]
[BlackElo "2707"]
[TimeControl "180+1"]
[EndTime "9:53:34 PDT"]
[Termination "elprimo2012mortis won by resignation"]

1. e4 {[%clk 0:02:50.8]} 1... c6 {[%clk 0:02:59.8]} 2. Nc3 {[%clk 0:02:47.6]}
2... d5 {[%clk 0:03:00.1]} 3. Nf3 {[%clk 0:02:48.5]} 3... dxe4 {[%clk
0:02:58.2]} 4. Nxe4 {[%clk 0:02:48.2]} 4... Nf6 {[%clk 0:02:58.6]} 5. Qe2 {[%clk
0:02:47.7]} 5... Nxe4 {[%clk 0:02:58.8]} 6. Qxe4 {[%clk 0:02:48.6]} 6... Qd5
{[%clk 0:02:59.4]} 7. Qh4 {[%clk 0:02:42]} 7... Qe6+ {[%clk 0:02:59.4]} 8. Be2
{[%clk 0:02:42.3]} 8... Qg6 {[%clk 0:02:59.3]} 9. O-O {[%clk 0:02:41.5]} 9...
Qxc2 {[%clk 0:03:00]} 10. b3 {[%clk 0:02:31.5]} 10... Qf5 {[%clk 0:02:58.6]} 11.
Bb2 {[%clk 0:02:30.8]} 11... Qg4 {[%clk 0:02:57.4]} 12. Rfe1 {[%clk 0:01:50.7]}
12... Qxh4 {[%clk 0:02:56.3]} 13. Nxh4 {[%clk 0:01:51.6]} 13... Be6 {[%clk
0:02:39.8]} 14. Nf3 {[%clk 0:01:41.6]} 14... Nd7 {[%clk 0:02:34.3]} 15. Nd4
{[%clk 0:01:37.2]} 15... Bd5 {[%clk 0:02:34.4]} 16. Nf5 {[%clk 0:01:37.9]} 16...
e6 {[%clk 0:02:19.4]} 17. Bf1 {[%clk 0:01:13.2]} 17... Rg8 {[%clk 0:02:13.1]}
18. Ne3 {[%clk 0:01:13.6]} 18... O-O-O {[%clk 0:02:04.4]} 19. Rac1 {[%clk
0:00:57.5]} 19... Bd6 {[%clk 0:02:00.4]} 20. Nc4 {[%clk 0:00:46.9]} 20... Bc7
{[%clk 0:01:53.9]} 21. b4 {[%clk 0:00:46.9]} 21... Bxc4 {[%clk 0:01:50.3]} 22.
Rxc4 {[%clk 0:00:44.6]} 22... Nb6 {[%clk 0:01:50.9]} 23. Rc2 {[%clk 0:00:45.3]}
23... a6 {[%clk 0:01:47.4]} 24. g3 {[%clk 0:00:43]} 24... Kb8 {[%clk 0:01:46.4]}
25. f4 {[%clk 0:00:36.3]} 25... Na4 {[%clk 0:01:27.5]} 26. Ba1 {[%clk
0:00:33.8]} 26... Bb6+ {[%clk 0:01:28]} 27. Kg2 {[%clk 0:00:33.6]} 27... Bd4
{[%clk 0:01:28.5]} 28. Bc3 {[%clk 0:00:23.9]} 28... Rd6 {[%clk 0:01:17.4]} 29.
Re4 {[%clk 0:00:18.2]} 29... Rgd8 {[%clk 0:01:16.1]} 30. Bc4 {[%clk 0:00:08.9]}
30... Bxc3 {[%clk 0:01:13.6]} 31. dxc3 {[%clk 0:00:09.8]} 31... Rd2+ {[%clk
0:01:10.9]} 32. Re2 {[%clk 0:00:10.5]} 32... Rxc2 {[%clk 0:01:02.2]} 33. Rxc2
{[%clk 0:00:10.4]} 33... Kc7 {[%clk 0:00:59.6]} 34. Bb3 {[%clk 0:00:10.3]} 34...
Nb6 {[%clk 0:00:59.9]} 35. f5 {[%clk 0:00:09.6]} 35... exf5 {[%clk 0:00:59.4]}
36. Bxf7 {[%clk 0:00:10.3]} 36... g6 {[%clk 0:00:56.4]} 37. h4 {[%clk
0:00:09.5]} 37... Rd7 {[%clk 0:00:56.2]} 38. Bg8 {[%clk 0:00:09.2]} 38... Nd5
{[%clk 0:00:55.3]} 39. h5 {[%clk 0:00:07]} 39... Ne3+ {[%clk 0:00:55.3]} 0-1

[Event "Early-Titled-Tuesday-Blitz-October-10-2023"]
[Site "Chess.com"]
[Date "2023.10.10"]
[Round "10"]
[White "Actuary44"]
[Black "AsaHoffmann"]
[Result "1-0"]
[WhiteElo "2527"]
[BlackElo "2394"]
[TimeControl "180+1"]
[EndTime "9:53:42 PDT"]
[Termination "Actuary44 won by resignation"]

1. e4 {[%clk 0:02:57.5]} 1... d6 {[%clk 0:02:59.2]} 2. d4 {[%clk 0:02:56.4]}
2... Nf6 {[%clk 0:02:57.1]} 3. Nc3 {[%clk 0:02:56.9]} 3... c6 {[%clk 0:02:53.1]}
4. Bg5 {[%clk 0:02:56]} 4... Nbd7 {[%clk 0:02:51.3]} 5. f3 {[%clk 0:02:56.1]}
5... Qa5 {[%clk 0:02:49.1]} 6. Qd2 {[%clk 0:02:54.8]} 6... b5 {[%clk 0:02:49.1]}
7. h4 {[%clk 0:02:51.3]} 7... e5 {[%clk 0:02:48.1]} 8. d5 {[%clk 0:02:48.6]}
8... b4 {[%clk 0:02:46.9]} 9. dxc6 {[%clk 0:02:47]} 9... bxc3 {[%clk 0:02:46.7]}
10. cxd7+ {[%clk 0:02:46.9]} 10... Bxd7 {[%clk 0:02:46.3]} 11. bxc3 {[%clk
0:02:46.3]} 11... Rc8 {[%clk 0:02:40.9]} 12. c4 {[%clk 0:02:39]} 12... Qa4
{[%clk 0:02:34.5]} 13. Bd3 {[%clk 0:02:32.1]} 13... Be7 {[%clk 0:02:20.9]} 14.
Ne2 {[%clk 0:02:32.2]} 14... Be6 {[%clk 0:02:20.2]} 15. Nc3 {[%clk 0:02:31.5]}
15... Qa5 {[%clk 0:02:09.3]} 16. Nd5 {[%clk 0:02:30.8]} 16... Qxd2+ {[%clk
0:02:03.3]} 17. Kxd2 {[%clk 0:02:31.7]} 17... Nxd5 {[%clk 0:01:55.1]} 18. cxd5
{[%clk 0:02:32.6]} 18... Bxg5+ {[%clk 0:01:50.7]} 19. hxg5 {[%clk 0:02:33.5]}
19... Bd7 {[%clk 0:01:49.6]} 20. Rab1 {[%clk 0:02:32.8]} 20... Ke7 {[%clk
0:01:39.7]} 21. Rb7 {[%clk 0:02:31.8]} 21... a5 {[%clk 0:01:25.7]} 22. Bb5
{[%clk 0:02:10.5]} 22... Rcd8 {[%clk 0:01:25]} 23. Ra7 {[%clk 0:02:01]} 23... h6
{[%clk 0:01:22.6]} 24. gxh6 {[%clk 0:01:57.1]} 24... gxh6 {[%clk 0:01:21.7]} 25.
Rb1 {[%clk 0:01:45.9]} 25... h5 {[%clk 0:01:18]} 26. Bc6 {[%clk 0:01:44.7]}
26... Rhg8 {[%clk 0:01:12.1]} 27. Rbb7 {[%clk 0:01:41.7]} 27... Rxg2+ {[%clk
0:01:11.1]} 28. Kd3 {[%clk 0:01:39]} 28... Rf2 {[%clk 0:01:03.2]} 29. Rxd7+
{[%clk 0:01:30.6]} 29... Rxd7 {[%clk 0:01:03.3]} 30. Rxd7+ {[%clk 0:01:30.9]}
30... Kf8 {[%clk 0:00:57.1]} 31. Rxd6 {[%clk 0:01:26.5]} 31... Rxf3+ {[%clk
0:00:56.3]} 32. Kc4 {[%clk 0:01:24.8]} 32... Kg7 {[%clk 0:00:52.6]} 33. Bd7
{[%clk 0:01:00.7]} 33... h4 {[%clk 0:00:49.5]} 34. Rb6 {[%clk 0:00:59.6]} 34...
h3 {[%clk 0:00:43.4]} 35. Rb1 {[%clk 0:00:59.2]} 35... h2 {[%clk 0:00:36.4]} 36.
Rh1 {[%clk 0:00:58.4]} 36... Rf2 {[%clk 0:00:36.5]} 37. Kd3 {[%clk 0:00:57.8]}
37... Kf6 {[%clk 0:00:33.1]} 38. d6 {[%clk 0:00:55.9]} 38... Kg5 {[%clk
0:00:25.2]} 39. Bf5 {[%clk 0:00:55]} 39... Kf6 {[%clk 0:00:18.3]} 40. a4 {[%clk
0:00:51.1]} 40... Rf3+ {[%clk 0:00:13.8]} 41. Ke2 {[%clk 0:00:49.5]} 41... Rc3
{[%clk 0:00:12.6]} 42. Kd2 {[%clk 0:00:49.8]} 42... Rc6 {[%clk 0:00:07.9]} 43.
d7 {[%clk 0:00:48.7]} 43... Ke7 {[%clk 0:00:07.4]} 44. Rxh2 {[%clk 0:00:49.1]}
1-0

[Event "Early-Titled-Tuesday-Blitz-October-10-2023"]
[Site "Chess.com"]
[Date "2023.10.10"]
[Round "10"]
[White "K_A_S_T_O_R"]
[Black "Leonid_Starozhilov"]
[Result "1-0"]
[WhiteElo "2903"]
[BlackElo "2747"]
[TimeControl "180+1"]
[EndTime "9:53:43 PDT"]
[Termination "K_A_S_T_O_R won by resignation"]

1. e4 {[%clk 0:02:14.2]} 1... Nc6 {[%clk 0:02:56.6]} 2. Nf3 {[%clk 0:02:13.6]}
2... d6 {[%clk 0:02:57.5]} 3. Bb5 {[%clk 0:02:11.8]} 3... Nf6 {[%clk 0:02:57.4]}
4. Nc3 {[%clk 0:02:10.8]} 4... g6 {[%clk 0:02:56.7]} 5. d4 {[%clk 0:02:10.5]}
5... a6 {[%clk 0:02:57.2]} 6. Bxc6+ {[%clk 0:02:10.4]} 6... bxc6 {[%clk
0:02:58.1]} 7. h3 {[%clk 0:02:11]} 7... Bg7 {[%clk 0:02:58.3]} 8. O-O {[%clk
0:02:11.6]} 8... O-O {[%clk 0:02:59]} 9. Be3 {[%clk 0:02:08.5]} 9... Rb8 {[%clk
0:02:57.1]} 10. Rb1 {[%clk 0:02:08.3]} 10... Nd7 {[%clk 0:02:57.4]} 11. Qd2
{[%clk 0:02:07.6]} 11... c5 {[%clk 0:02:50.7]} 12. Bh6 {[%clk 0:02:01]} 12...
Bb7 {[%clk 0:02:37.8]} 13. d5 {[%clk 0:01:52.2]} 13... c6 {[%clk 0:02:32.7]} 14.
Rfe1 {[%clk 0:01:50.3]} 14... Nf6 {[%clk 0:02:30.6]} 15. Bxg7 {[%clk 0:01:38.4]}
15... Kxg7 {[%clk 0:02:30.6]} 16. Rbd1 {[%clk 0:01:37.4]} 16... Re8 {[%clk
0:02:24.2]} 17. b3 {[%clk 0:01:34.1]} 17... Qa5 {[%clk 0:02:23.6]} 18. Qd3
{[%clk 0:01:27.6]} 18... Rbd8 {[%clk 0:02:11.3]} 19. Nd2 {[%clk 0:01:27.1]}
19... Qc7 {[%clk 0:02:00.3]} 20. Nc4 {[%clk 0:01:26.3]} 20... a5 {[%clk
0:01:55.9]} 21. Ne3 {[%clk 0:01:18.5]} 21... e5 {[%clk 0:01:25.3]} 22. dxc6
{[%clk 0:01:13.7]} 22... Bxc6 {[%clk 0:01:25.5]} 23. a4 {[%clk 0:01:06.6]} 23...
Re6 {[%clk 0:01:06.9]} 24. f3 {[%clk 0:01:04]} 24... Nh5 {[%clk 0:01:05.5]} 25.
Ne2 {[%clk 0:01:01.8]} 25... Bb7 {[%clk 0:00:57]} 26. Qc3 {[%clk 0:01:00.8]}
26... Qb6 {[%clk 0:00:39.2]} 27. Nc4 {[%clk 0:01:00.4]} 27... Qb4 {[%clk
0:00:38.1]} 28. Nxa5 {[%clk 0:00:59.2]} 28... Ba8 {[%clk 0:00:25.2]} 29. Qxb4
{[%clk 0:00:55.4]} 29... cxb4 {[%clk 0:00:26.1]} 30. Nc4 {[%clk 0:00:56]} 30...
d5 {[%clk 0:00:24.3]} 31. exd5 {[%clk 0:00:54.5]} 31... Rxd5 {[%clk 0:00:25.2]}
32. Rxd5 {[%clk 0:00:54]} 32... Bxd5 {[%clk 0:00:26.1]} 33. Ne3 {[%clk
0:00:54.6]} 33... Bb7 {[%clk 0:00:24.2]} 34. Rd1 {[%clk 0:00:54.8]} 34... Re7
{[%clk 0:00:17.1]} 35. Kf2 {[%clk 0:00:52.8]} 35... Rc7 {[%clk 0:00:16.1]} 36.
Rd6 {[%clk 0:00:50.7]} 36... Nf6 {[%clk 0:00:10.3]} 37. Rb6 {[%clk 0:00:47.6]}
37... e4 {[%clk 0:00:05.9]} 38. f4 {[%clk 0:00:45.1]} 38... Nd5 {[%clk
0:00:05.3]} 39. Rxb7 {[%clk 0:00:45.4]} 1-0

[Event "Early-Titled-Tuesday-Blitz-October-10-2023"]
[Site "Chess.com"]
[Date "2023.10.10"]
[Round "10"]
[White "Zq1"]
[Black "MightyGMpretender"]
[Result "1-0"]
[WhiteElo "2545"]
[BlackElo "2730"]
[TimeControl "180+1"]
[EndTime "9:53:44 PDT"]
[Termination "Zq1 won by resignation"]

1. d4 {[%clk 0:03:00.9]} 1... Nf6 {[%clk 0:02:49.3]} 2. c4 {[%clk 0:03:00.8]}
2... e6 {[%clk 0:02:49.9]} 3. Nc3 {[%clk 0:02:56.9]} 3... Bb4 {[%clk 0:02:49.8]}
4. a3 {[%clk 0:02:57.1]} 4... Bxc3+ {[%clk 0:02:49.9]} 5. bxc3 {[%clk
0:02:57.8]} 5... d6 {[%clk 0:02:49.7]} 6. e3 {[%clk 0:02:57.8]} 6... b6 {[%clk
0:02:45]} 7. Bd3 {[%clk 0:02:57.3]} 7... Bb7 {[%clk 0:02:45.4]} 8. f3 {[%clk
0:02:57.5]} 8... e5 {[%clk 0:02:45.5]} 9. e4 {[%clk 0:02:55.5]} 9... Nc6 {[%clk
0:02:45.5]} 10. Ne2 {[%clk 0:02:54.9]} 10... Qe7 {[%clk 0:02:42.7]} 11. O-O
{[%clk 0:02:52.4]} 11... Na5 {[%clk 0:02:37.6]} 12. Ng3 {[%clk 0:02:46.2]} 12...
Bc8 {[%clk 0:02:27.1]} 13. f4 {[%clk 0:02:33.4]} 13... h6 {[%clk 0:02:08.7]} 14.
h3 {[%clk 0:02:27.2]} 14... c5 {[%clk 0:02:05.1]} 15. Be3 {[%clk 0:02:20.6]}
15... Be6 {[%clk 0:01:56.7]} 16. fxe5 {[%clk 0:02:14.7]} 16... dxe5 {[%clk
0:01:57]} 17. d5 {[%clk 0:02:03.9]} 17... Bd7 {[%clk 0:01:55.7]} 18. Qf3 {[%clk
0:02:03.7]} 18... O-O-O {[%clk 0:01:51.4]} 19. a4 {[%clk 0:02:02.3]} 19... Rhf8
{[%clk 0:01:46.2]} 20. Rfb1 {[%clk 0:01:54]} 20... Ne8 {[%clk 0:01:45.4]} 21.
Rb5 {[%clk 0:01:42.9]} 21... Bxb5 {[%clk 0:01:41.6]} 22. axb5 {[%clk 0:01:41]}
22... Nd6 {[%clk 0:01:35.9]} 23. Rxa5 {[%clk 0:01:23.7]} 23... bxa5 {[%clk
0:01:34.3]} 24. Bxc5 {[%clk 0:01:23.7]} 24... Qc7 {[%clk 0:01:33.7]} 25. Qe3
{[%clk 0:01:22.7]} 25... Kb7 {[%clk 0:01:30.1]} 26. Bxd6 {[%clk 0:01:17]} 26...
Rxd6 {[%clk 0:01:16.4]} 27. c5 {[%clk 0:01:16.6]} 27... Rdd8 {[%clk 0:01:16.9]}
28. Nf5 {[%clk 0:01:03]} 28... g6 {[%clk 0:01:14.8]} 29. d6 {[%clk 0:01:01.7]}
29... Qb8 {[%clk 0:00:50.5]} 30. Ne7 {[%clk 0:00:58.7]} 30... Rxd6 {[%clk
0:00:37.1]} 31. cxd6 {[%clk 0:00:55.9]} 31... Qxd6 {[%clk 0:00:38]} 32. Nc6
{[%clk 0:00:49.9]} 32... Ra8 {[%clk 0:00:37.9]} 33. Bc4 {[%clk 0:00:46.6]} 33...
Qc7 {[%clk 0:00:32.8]} 34. Bd5 {[%clk 0:00:43]} 34... Qb6 {[%clk 0:00:31]} 35.
Nxa5+ {[%clk 0:00:40.3]} 35... Kc7 {[%clk 0:00:31]} 36. Qxb6+ {[%clk 0:00:38.1]}
36... axb6 {[%clk 0:00:31.4]} 37. Bxa8 {[%clk 0:00:36.6]} 37... bxa5 {[%clk
0:00:31.8]} 38. Bd5 {[%clk 0:00:34.9]} 38... f5 {[%clk 0:00:31.8]} 39. exf5
{[%clk 0:00:30.5]} 39... gxf5 {[%clk 0:00:32.7]} 40. Ba2 {[%clk 0:00:28.4]}
40... Kb6 {[%clk 0:00:33.1]} 41. c4 {[%clk 0:00:28.5]} 41... Kc5 {[%clk
0:00:32.7]} 42. Kf2 {[%clk 0:00:28.3]} 42... a4 {[%clk 0:00:32.4]} 43. Ke3
{[%clk 0:00:27.6]} 43... a3 {[%clk 0:00:30.8]} 44. g4 {[%clk 0:00:25.5]} 44...
f4+ {[%clk 0:00:30.4]} 45. Ke4 {[%clk 0:00:25]} 1-0

[Event "Early-Titled-Tuesday-Blitz-October-10-2023"]
[Site "Chess.com"]
[Date "2023.10.10"]
[Round "10"]
[White "Man-Chuk"]
[Black "LeoLV10"]
[Result "1-0"]
[WhiteElo "2758"]
[BlackElo "2563"]
[TimeControl "180+1"]
[EndTime "9:53:47 PDT"]
[Termination "Man-Chuk won by resignation"]

1. e4 {[%clk 0:03:00.9]} 1... c6 {[%clk 0:02:59.3]} 2. Nf3 {[%clk 0:02:59.9]}
2... d5 {[%clk 0:03:00.2]} 3. Nc3 {[%clk 0:03:00.5]} 3... Bg4 {[%clk 0:03:00.3]}
4. h3 {[%clk 0:03:00.2]} 4... Bxf3 {[%clk 0:03:00.9]} 5. Qxf3 {[%clk 0:03:00]}
5... e6 {[%clk 0:03:01.8]} 6. Be2 {[%clk 0:02:49.1]} 6... Nd7 {[%clk 0:03:01.4]}
7. O-O {[%clk 0:02:48.9]} 7... Ngf6 {[%clk 0:03:01.6]} 8. d4 {[%clk 0:02:47.3]}
8... dxe4 {[%clk 0:03:00.2]} 9. Nxe4 {[%clk 0:02:47.5]} 9... Nxe4 {[%clk
0:03:01]} 10. Qxe4 {[%clk 0:02:48]} 10... Bd6 {[%clk 0:03:00.7]} 11. c3 {[%clk
0:02:42.3]} 11... Nf6 {[%clk 0:03:00.5]} 12. Qf3 {[%clk 0:02:38]} 12... Qc7
{[%clk 0:02:51.9]} 13. a4 {[%clk 0:02:34.8]} 13... Nd5 {[%clk 0:02:42.5]} 14. g3
{[%clk 0:02:31.7]} 14... Ne7 {[%clk 0:02:38.5]} 15. Re1 {[%clk 0:02:22.7]} 15...
Ng6 {[%clk 0:02:36.8]} 16. h4 {[%clk 0:02:21.3]} 16... Ne7 {[%clk 0:02:05.2]}
17. Bd3 {[%clk 0:02:20.7]} 17... a6 {[%clk 0:02:01.6]} 18. Bg5 {[%clk
0:02:17.5]} 18... h6 {[%clk 0:01:59.4]} 19. Bd2 {[%clk 0:02:17]} 19... c5 {[%clk
0:01:31.4]} 20. dxc5 {[%clk 0:02:04.9]} 20... Bxc5 {[%clk 0:01:29.7]} 21. Bf4
{[%clk 0:02:03]} 21... Bd6 {[%clk 0:01:28.7]} 22. Bxd6 {[%clk 0:01:55]} 22...
Qxd6 {[%clk 0:01:29.6]} 23. Qxb7 {[%clk 0:01:54.4]} 23... O-O {[%clk 0:01:30]}
24. Qe4 {[%clk 0:01:50]} 24... g6 {[%clk 0:01:26.6]} 25. h5 {[%clk 0:01:46.9]}
25... Rab8 {[%clk 0:01:19.2]} 26. hxg6 {[%clk 0:01:33.3]} 26... Nxg6 {[%clk
0:01:18]} 27. b4 {[%clk 0:01:20.3]} 27... Rfc8 {[%clk 0:01:17.5]} 28. Rac1
{[%clk 0:01:06.2]} 28... Rd8 {[%clk 0:01:08]} 29. Re3 {[%clk 0:01:05]} 29... Qc7
{[%clk 0:01:00.6]} 30. Qg4 {[%clk 0:01:01]} 30... h5 {[%clk 0:00:44.8]} 31. Qxh5
{[%clk 0:00:59.2]} 31... Rd5 {[%clk 0:00:40.5]} 32. Qg4 {[%clk 0:00:57.9]} 32...
Kg7 {[%clk 0:00:31.3]} 33. Bxg6 {[%clk 0:00:52.6]} 33... fxg6 {[%clk 0:00:32.2]}
34. Rxe6 {[%clk 0:00:51.8]} 34... Qf7 {[%clk 0:00:32.1]} 35. Rce1 {[%clk
0:00:51.4]} 35... Rd7 {[%clk 0:00:25.1]} 36. Rxg6+ {[%clk 0:00:50.3]} 36... Qxg6
{[%clk 0:00:23.4]} 37. Qxd7+ {[%clk 0:00:50.3]} 37... Kh8 {[%clk 0:00:20.9]} 38.
Re6 {[%clk 0:00:47.3]} 38... Qb1+ {[%clk 0:00:20.2]} 39. Kg2 {[%clk 0:00:47.5]}
39... Rf8 {[%clk 0:00:14.3]} 40. Qd4+ {[%clk 0:00:33]} 40... Kg8 {[%clk
0:00:13.5]} 41. Qg4+ {[%clk 0:00:31.5]} 41... Kh8 {[%clk 0:00:13.3]} 42. Rh6+
{[%clk 0:00:31.3]} 1-0